[Event "Late-Titled-Tuesday-Blitz-November-28-2023"]
[Site "Chess.com"]
[Date "2023.11.28"]
[Round "6"]
[White "Elbebiber"]
[Black "PNEPaul"]
[Result "1-0"]
[WhiteElo "2131"]
[BlackElo "1858"]
[TimeControl "180+1"]
[EndTime "15:05:22 PST"]
[Termination "Elbebiber won on time"]

1. d4 {[%clk 0:03:00.9]} 1... a6 {[%clk 0:02:59.1]} 2. e4 {[%clk 0:02:57.1]}
2... d6 {[%clk 0:02:59.3]} 3. Be3 {[%clk 0:02:56.4]} 3... g6 {[%clk 0:02:59.7]}
4. c3 {[%clk 0:02:55.8]} 4... Bg7 {[%clk 0:03:00]} 5. Bd3 {[%clk 0:02:55.7]}
5... Nd7 {[%clk 0:02:59.7]} 6. Nd2 {[%clk 0:02:55.6]} 6... h6 {[%clk 0:03:00.1]}
7. Ngf3 {[%clk 0:02:53.2]} 7... e5 {[%clk 0:02:59.8]} 8. Qe2 {[%clk 0:02:52.3]}
8... Ne7 {[%clk 0:02:59.1]} 9. O-O {[%clk 0:02:49.7]} 9... O-O {[%clk
0:02:58.9]} 10. h3 {[%clk 0:02:47.2]} 10... f5 {[%clk 0:02:56.4]} 11. Nc4 {[%clk
0:02:44.5]} 11... f4 {[%clk 0:02:54.2]} 12. Bc1 {[%clk 0:02:42.5]} 12... b5
{[%clk 0:02:50.2]} 13. Na3 {[%clk 0:02:34.4]} 13... g5 {[%clk 0:02:47.1]} 14.
dxe5 {[%clk 0:02:29.7]} 14... Nxe5 {[%clk 0:02:44.5]} 15. Nxe5 {[%clk
0:02:28.7]} 15... dxe5 {[%clk 0:02:44.4]} 16. f3 {[%clk 0:02:24]} 16... Qe8
{[%clk 0:02:42.2]} 17. Bc2 {[%clk 0:02:18.4]} 17... Qg6 {[%clk 0:02:39.9]} 18.
Bb3+ {[%clk 0:02:16]} 18... Kh7 {[%clk 0:02:38.6]} 19. c4 {[%clk 0:02:12]} 19...
b4 {[%clk 0:02:36]} 20. Nc2 {[%clk 0:02:11.9]} 20... a5 {[%clk 0:02:33.4]} 21.
c5 {[%clk 0:02:11.1]} 21... h5 {[%clk 0:02:27.3]} 22. Bd5 {[%clk 0:02:01.3]}
22... Nxd5 {[%clk 0:02:22.8]} 23. exd5 {[%clk 0:02:00.6]} 23... Bf5 {[%clk
0:02:19.7]} 24. Ne1 {[%clk 0:01:56.4]} 24... Rad8 {[%clk 0:02:09.7]} 25. a3
{[%clk 0:01:40.2]} 25... Rxd5 {[%clk 0:02:04.8]} 26. axb4 {[%clk 0:01:40.5]}
26... axb4 {[%clk 0:02:04.9]} 27. Ra6 {[%clk 0:01:39.5]} 27... Bd3 {[%clk
0:01:46.3]} 28. Nxd3 {[%clk 0:01:11.7]} 28... Qxd3 {[%clk 0:01:44]} 29. Qxd3+
{[%clk 0:01:05.9]} 29... Rxd3 {[%clk 0:01:43.7]} 30. Rc6 {[%clk 0:01:04.4]}
30... Rf7 {[%clk 0:01:36.4]} 31. Re1 {[%clk 0:00:59]} 31... Rfd7 {[%clk
0:01:28.6]} 32. Kf1 {[%clk 0:00:58.4]} 32... Rd1 {[%clk 0:01:00.4]} 33. Ke2
{[%clk 0:00:55.3]} 33... Rxe1+ {[%clk 0:00:59.4]} 34. Kxe1 {[%clk 0:00:55.6]}
34... Re7 {[%clk 0:00:32.3]} 35. Ke2 {[%clk 0:00:43.5]} 35... e4 {[%clk
0:00:32.3]} 36. fxe4 {[%clk 0:00:43.7]} 36... Rxe4+ {[%clk 0:00:31.3]} 37. Kf3
{[%clk 0:00:40.3]} 37... Re7 {[%clk 0:00:28.6]} 38. b3 {[%clk 0:00:36.6]} 38...
Bd4 {[%clk 0:00:25.5]} 39. Bd2 {[%clk 0:00:35.2]} 39... Be3 {[%clk 0:00:24.6]}
40. Bxb4 {[%clk 0:00:33.9]} 40... Bg1 {[%clk 0:00:14.1]} 41. Bd2 {[%clk
0:00:31.3]} 41... Be3 {[%clk 0:00:13.5]} 42. Ba5 {[%clk 0:00:31]} 42... Bg1
{[%clk 0:00:11.5]} 43. Rxc7 {[%clk 0:00:30.9]} 43... Rxc7 {[%clk 0:00:10.1]} 44.
Bxc7 {[%clk 0:00:31]} 44... Bxc5 {[%clk 0:00:09.7]} 45. h4 {[%clk 0:00:30.4]}
45... Kg6 {[%clk 0:00:08.8]} 46. hxg5 {[%clk 0:00:30.3]} 46... Kxg5 {[%clk
0:00:08.5]} 47. Bxf4+ {[%clk 0:00:30]} 47... Kf5 {[%clk 0:00:08.5]} 48. Be3
{[%clk 0:00:29.5]} 48... Be7 {[%clk 0:00:08]} 49. Bd4 {[%clk 0:00:23.1]} 49...
Bd6 {[%clk 0:00:07.6]} 50. Bb6 {[%clk 0:00:21.1]} 50... Be7 {[%clk 0:00:06.7]}
51. Ba5 {[%clk 0:00:21.5]} 51... Bg5 {[%clk 0:00:02.7]} 52. b4 {[%clk
0:00:20.8]} 52... Bd2 {[%clk 0:00:02.4]} 53. Ke2 {[%clk 0:00:19.4]} 53... Bc3
{[%clk 0:00:02.3]} 54. Kd3 {[%clk 0:00:19.8]} 54... Be1 {[%clk 0:00:02.2]} 55.
Kc4 {[%clk 0:00:18.4]} 55... Kg4 {[%clk 0:00:02]} 56. Bc7 {[%clk 0:00:15.5]} 1-0

[Event "Late-Titled-Tuesday-Blitz-November-28-2023"]
[Site "Chess.com"]
[Date "2023.11.28"]
[Round "6"]
[White "SouS007"]
[Black "SalihEke"]
[Result "0-1"]
[WhiteElo "2611"]
[BlackElo "2503"]
[TimeControl "180+1"]
[EndTime "15:05:23 PST"]
[Termination "SalihEke won by checkmate"]

1. Nf3 {[%clk 0:03:00.9]} 1... d5 {[%clk 0:02:54.1]} 2. d4 {[%clk 0:03:00.8]}
2... Nf6 {[%clk 0:02:52]} 3. g3 {[%clk 0:03:01.1]} 3... e6 {[%clk 0:02:51.8]} 4.
Bg2 {[%clk 0:03:01.4]} 4... Nbd7 {[%clk 0:02:51.2]} 5. O-O {[%clk 0:03:01.6]}
5... Bd6 {[%clk 0:02:48.5]} 6. c4 {[%clk 0:03:00.5]} 6... c6 {[%clk 0:02:48.6]}
7. Nc3 {[%clk 0:02:57.8]} 7... O-O {[%clk 0:02:48.7]} 8. Nd2 {[%clk 0:02:58.2]}
8... Bc7 {[%clk 0:02:44]} 9. e4 {[%clk 0:02:58]} 9... dxe4 {[%clk 0:02:44.4]}
10. Ndxe4 {[%clk 0:02:58.9]} 10... h6 {[%clk 0:02:39.5]} 11. h3 {[%clk
0:02:50.5]} 11... Nxe4 {[%clk 0:02:39.7]} 12. Nxe4 {[%clk 0:02:50.9]} 12... Nf6
{[%clk 0:02:40.5]} 13. Nc3 {[%clk 0:02:51.1]} 13... e5 {[%clk 0:02:36.8]} 14.
Be3 {[%clk 0:02:40.3]} 14... Bf5 {[%clk 0:02:26.9]} 15. dxe5 {[%clk 0:02:39]}
15... Bxe5 {[%clk 0:02:26.2]} 16. Qf3 {[%clk 0:02:28.3]} 16... Bg6 {[%clk
0:02:09.4]} 17. Rad1 {[%clk 0:02:26.6]} 17... Qa5 {[%clk 0:02:09.6]} 18. Bd2
{[%clk 0:02:21.4]} 18... Qc5 {[%clk 0:01:51.9]} 19. b3 {[%clk 0:02:15.4]} 19...
Rad8 {[%clk 0:01:51.2]} 20. Na4 {[%clk 0:02:13.8]} 20... Qa3 {[%clk 0:01:47.9]}
21. Bc3 {[%clk 0:01:57.5]} 21... Bxc3 {[%clk 0:01:21.2]} 22. Nxc3 {[%clk
0:01:58.4]} 22... Qb2 {[%clk 0:01:15.3]} 23. Qe3 {[%clk 0:01:38.6]} 23... Rfe8
{[%clk 0:01:04]} 24. Rxd8 {[%clk 0:01:37.9]} 24... Rxd8 {[%clk 0:01:04.9]} 25.
Qc1 {[%clk 0:01:14.1]} 25... Rd2 {[%clk 0:00:37]} 26. Qxb2 {[%clk 0:01:13.3]}
26... Rxb2 {[%clk 0:00:37.8]} 27. Rc1 {[%clk 0:01:09]} 27... Kf8 {[%clk
0:00:35.6]} 28. Bf3 {[%clk 0:01:01.3]} 28... Ke7 {[%clk 0:00:34.1]} 29. Re1+
{[%clk 0:01:01.3]} 29... Kd6 {[%clk 0:00:33.6]} 30. Re2 {[%clk 0:01:01.5]} 30...
Rxe2 {[%clk 0:00:30.8]} 31. Bxe2 {[%clk 0:01:02.1]} 31... Kc5 {[%clk 0:00:30.4]}
32. a3 {[%clk 0:00:58.2]} 32... Kd4 {[%clk 0:00:30.3]} 33. Na4 {[%clk 0:00:49]}
33... Bc2 {[%clk 0:00:27.6]} 34. f4 {[%clk 0:00:27.1]} 34... Bxb3 {[%clk
0:00:26.8]} 35. Nb2 {[%clk 0:00:27.7]} 35... Ne4 {[%clk 0:00:25.8]} 36. Bh5
{[%clk 0:00:24.9]} 36... f6 {[%clk 0:00:21.8]} 37. Kg2 {[%clk 0:00:22]} 37...
Bxc4 {[%clk 0:00:21.4]} 38. Nxc4 {[%clk 0:00:22.5]} 38... Kxc4 {[%clk
0:00:22.1]} 39. Bg4 {[%clk 0:00:23.1]} 39... Kb3 {[%clk 0:00:20.2]} 40. Bc8
{[%clk 0:00:22.9]} 40... Nd6 {[%clk 0:00:20.8]} 41. Be6+ {[%clk 0:00:22.7]}
41... Kxa3 {[%clk 0:00:21.3]} 42. g4 {[%clk 0:00:23.1]} 42... b5 {[%clk
0:00:21.6]} 43. Kf3 {[%clk 0:00:23.6]} 43... b4 {[%clk 0:00:21.9]} 44. Ke3
{[%clk 0:00:24.3]} 44... b3 {[%clk 0:00:22.3]} 45. Kd2 {[%clk 0:00:24.4]} 45...
a5 {[%clk 0:00:20.9]} 46. Kc3 {[%clk 0:00:24.5]} 46... c5 {[%clk 0:00:20.6]} 47.
Bxb3 {[%clk 0:00:20.6]} 47... a4 {[%clk 0:00:12.4]} 48. Bd1 {[%clk 0:00:19.2]}
48... Ne4+ {[%clk 0:00:09.7]} 49. Kc4 {[%clk 0:00:20.1]} 49... Nf2 {[%clk
0:00:09]} 50. Bc2 {[%clk 0:00:20.1]} 50... Nxh3 {[%clk 0:00:08.9]} 51. Kxc5
{[%clk 0:00:20.1]} 51... Nf2 {[%clk 0:00:09.6]} 52. Kb5 {[%clk 0:00:20.5]} 52...
Nxg4 {[%clk 0:00:08.9]} 53. Bxa4 {[%clk 0:00:20.8]} 53... h5 {[%clk 0:00:09.4]}
54. Bd1 {[%clk 0:00:21.2]} 54... f5 {[%clk 0:00:08.1]} 55. Kc4 {[%clk
0:00:19.6]} 55... h4 {[%clk 0:00:08.7]} 56. Kd3 {[%clk 0:00:19.8]} 56... Nf2+
{[%clk 0:00:09.1]} 57. Ke2 {[%clk 0:00:20.4]} 57... Nxd1 {[%clk 0:00:09.6]} 58.
Kxd1 {[%clk 0:00:21.3]} 58... h3 {[%clk 0:00:08.5]} 59. Ke2 {[%clk 0:00:22.2]}
59... h2 {[%clk 0:00:09.3]} 60. Kf2 {[%clk 0:00:23.1]} 60... h1=Q {[%clk
0:00:09.9]} 61. Kg3 {[%clk 0:00:23.9]} 61... Qe4 {[%clk 0:00:10.4]} 62. Kh4
{[%clk 0:00:24.3]} 62... Qxf4+ {[%clk 0:00:10.8]} 63. Kh5 {[%clk 0:00:25.2]}
63... Qg4# {[%clk 0:00:11.1]} 0-1

[Event "Late-Titled-Tuesday-Blitz-November-28-2023"]
[Site "Chess.com"]
[Date "2023.11.28"]
[Round "6"]
[White "The_Princess_Moon"]
[Black "thechessnoob12345"]
[Result "0-1"]
[WhiteElo "2379"]
[BlackElo "2304"]
[TimeControl "180+1"]
[EndTime "15:05:24 PST"]
[Termination "thechessnoob12345 won by resignation"]

1. e4 {[%clk 0:03:00.9]} 1... d5 {[%clk 0:02:57]} 2. exd5 {[%clk 0:02:59.9]}
2... Qxd5 {[%clk 0:02:57.2]} 3. Nc3 {[%clk 0:03:00.7]} 3... Qa5 {[%clk
0:02:57.3]} 4. d4 {[%clk 0:03:01.3]} 4... Nf6 {[%clk 0:02:57.5]} 5. Nf3 {[%clk
0:03:02]} 5... c6 {[%clk 0:02:57.7]} 6. Bc4 {[%clk 0:03:02.6]} 6... Bg4 {[%clk
0:02:57.3]} 7. h3 {[%clk 0:03:01.7]} 7... Bxf3 {[%clk 0:02:56.7]} 8. Qxf3 {[%clk
0:03:01.4]} 8... e6 {[%clk 0:02:57.2]} 9. Bd2 {[%clk 0:03:01.2]} 9... Nbd7
{[%clk 0:02:56.8]} 10. O-O-O {[%clk 0:02:55.4]} 10... Qc7 {[%clk 0:02:51.3]} 11.
Rhe1 {[%clk 0:02:52.8]} 11... Be7 {[%clk 0:02:49.6]} 12. g4 {[%clk 0:02:48.5]}
12... O-O {[%clk 0:02:45.3]} 13. g5 {[%clk 0:02:44.7]} 13... Ne8 {[%clk
0:02:42.1]} 14. Bd3 {[%clk 0:02:36.7]} 14... b5 {[%clk 0:02:36.4]} 15. Bf4
{[%clk 0:02:19.9]} 15... Bd6 {[%clk 0:02:32.4]} 16. Bxd6 {[%clk 0:02:18.7]}
16... Nxd6 {[%clk 0:02:33.3]} 17. Qh5 {[%clk 0:02:10.2]} 17... g6 {[%clk
0:02:31.1]} 18. Qf3 {[%clk 0:02:09.2]} 18... b4 {[%clk 0:02:12.4]} 19. Ne4
{[%clk 0:02:05.8]} 19... Nxe4 {[%clk 0:02:12]} 20. Bxe4 {[%clk 0:02:05.1]} 20...
Rac8 {[%clk 0:02:10.3]} 21. h4 {[%clk 0:02:02.3]} 21... c5 {[%clk 0:02:02.1]}
22. d5 {[%clk 0:02:01]} 22... Ne5 {[%clk 0:01:51.4]} 23. Qe2 {[%clk 0:01:48.9]}
23... exd5 {[%clk 0:01:45.9]} 24. Bxd5 {[%clk 0:01:46.3]} 24... Rfe8 {[%clk
0:01:46.5]} 25. f4 {[%clk 0:01:44.6]} 25... Nc6 {[%clk 0:01:38.2]} 26. Qg2
{[%clk 0:01:20.7]} 26... Nd4 {[%clk 0:01:14.5]} 27. Rxe8+ {[%clk 0:01:11.2]}
27... Rxe8 {[%clk 0:01:15.4]} 28. Bc4 {[%clk 0:01:06.6]} 28... Qxf4+ {[%clk
0:01:11.9]} 29. Kb1 {[%clk 0:01:06.2]} 29... Qxh4 {[%clk 0:01:02.3]} 30. Qd5
{[%clk 0:00:49.6]} 30... Ne6 {[%clk 0:00:52.8]} 31. Rh1 {[%clk 0:00:48.1]} 31...
Qxg5 {[%clk 0:00:48.1]} 32. Qf3 {[%clk 0:00:41.6]} 32... h5 {[%clk 0:00:37.5]}
33. Rf1 {[%clk 0:00:37.6]} 33... Qe7 {[%clk 0:00:24.8]} 34. Rg1 {[%clk
0:00:32.6]} 34... Kg7 {[%clk 0:00:19]} 35. b3 {[%clk 0:00:27.4]} 35... Nd4
{[%clk 0:00:18.7]} 36. Qf2 {[%clk 0:00:16.3]} 36... Qf6 {[%clk 0:00:18.6]} 37.
Qxf6+ {[%clk 0:00:14]} 37... Kxf6 {[%clk 0:00:19.5]} 38. Rf1+ {[%clk 0:00:14.2]}
38... Nf5 {[%clk 0:00:20.1]} 39. Bd3 {[%clk 0:00:12.7]} 39... h4 {[%clk
0:00:19.1]} 40. Kb2 {[%clk 0:00:12.5]} 40... Rh8 {[%clk 0:00:18.4]} 41. a3
{[%clk 0:00:10.6]} 41... bxa3+ {[%clk 0:00:18.1]} 42. Kxa3 {[%clk 0:00:10.2]}
42... h3 {[%clk 0:00:19]} 43. Be4 {[%clk 0:00:08.1]} 43... h2 {[%clk 0:00:18.5]}
44. b4 {[%clk 0:00:07.2]} 44... cxb4+ {[%clk 0:00:18.5]} 45. Kxb4 {[%clk
0:00:08.1]} 45... Ke5 {[%clk 0:00:19.4]} 46. Bc6 {[%clk 0:00:06.6]} 46... Ng3
{[%clk 0:00:19.3]} 47. Re1+ {[%clk 0:00:06.1]} 47... Kd6 {[%clk 0:00:19.1]} 48.
Bg2 {[%clk 0:00:04.8]} 48... f5 {[%clk 0:00:16.5]} 49. Bh1 {[%clk 0:00:04.7]}
49... Nxh1 {[%clk 0:00:15.8]} 50. Rxh1 {[%clk 0:00:05.6]} 50... g5 {[%clk
0:00:16.7]} 51. Rd1+ {[%clk 0:00:06.1]} 51... Kc6 {[%clk 0:00:16.7]} 52. c4
{[%clk 0:00:06.5]} 52... h1=Q {[%clk 0:00:16.6]} 53. Re1 {[%clk 0:00:07.1]}
53... Qxe1+ {[%clk 0:00:16.8]} 0-1

[Event "Late-Titled-Tuesday-Blitz-November-28-2023"]
[Site "Chess.com"]
[Date "2023.11.28"]
[Round "6"]
[White "ahkashefi2800"]
[Black "NCchamp"]
[Result "0-1"]
[WhiteElo "2563"]
[BlackElo "2383"]
[TimeControl "180+1"]
[EndTime "15:05:25 PST"]
[Termination "NCchamp won on time"]

1. d4 {[%clk 0:02:59.2]} 1... d5 {[%clk 0:02:59.2]} 2. c4 {[%clk 0:02:55.3]}
2... dxc4 {[%clk 0:03:00.1]} 3. Nc3 {[%clk 0:02:54.1]} 3... Nc6 {[%clk
0:02:57.4]} 4. Nf3 {[%clk 0:02:51]} 4... a6 {[%clk 0:02:55.4]} 5. d5 {[%clk
0:02:39.2]} 5... Na5 {[%clk 0:02:52.7]} 6. e4 {[%clk 0:02:35.2]} 6... b5 {[%clk
0:02:46.1]} 7. Bf4 {[%clk 0:02:23.3]} 7... Bb7 {[%clk 0:02:35.1]} 8. g4 {[%clk
0:02:08.7]} 8... c6 {[%clk 0:02:14.5]} 9. Bg2 {[%clk 0:02:07.1]} 9... cxd5
{[%clk 0:01:58]} 10. exd5 {[%clk 0:02:06]} 10... Nf6 {[%clk 0:01:47.9]} 11. Ne5
{[%clk 0:01:58.7]} 11... e6 {[%clk 0:01:26.5]} 12. dxe6 {[%clk 0:01:43.5]} 12...
Qxd1+ {[%clk 0:01:14.4]} 13. Rxd1 {[%clk 0:01:42.9]} 13... Bxg2 {[%clk
0:01:15.3]} 14. exf7+ {[%clk 0:01:30.3]} 14... Ke7 {[%clk 0:01:13.4]} 15. Rg1
{[%clk 0:01:24.4]} 15... Bb7 {[%clk 0:01:06.3]} 16. Rg3 {[%clk 0:01:10.9]} 16...
Rd8 {[%clk 0:00:59.5]} 17. Re3 {[%clk 0:01:05.1]} 17... Rxd1+ {[%clk 0:00:56.5]}
18. Kxd1 {[%clk 0:01:04.4]} 18... Kd8 {[%clk 0:00:48.9]} 19. g5 {[%clk
0:00:52.9]} 19... Nh5 {[%clk 0:00:38.2]} 20. Ne2 {[%clk 0:00:39.7]} 20... Bc5
{[%clk 0:00:35.3]} 21. Rh3 {[%clk 0:00:26.9]} 21... g6 {[%clk 0:00:35.6]} 22.
Be3 {[%clk 0:00:19.8]} 22... Bd6 {[%clk 0:00:29.1]} 23. Bd4 {[%clk 0:00:04.6]}
23... Rf8 {[%clk 0:00:19.5]} 24. f4 {[%clk 0:00:03]} 24... Nc6 {[%clk
0:00:18.6]} 25. Nxc6+ {[%clk 0:00:02.9]} 25... Bxc6 {[%clk 0:00:19.5]} 26. Bb6+
{[%clk 0:00:02.6]} 26... Bc7 {[%clk 0:00:17.5]} 27. Nd4 {[%clk 0:00:03.5]} 27...
Bg2 {[%clk 0:00:15.5]} 28. Bxc7+ {[%clk 0:00:02.5]} 28... Kxc7 {[%clk
0:00:04.2]} 29. Rxh5 {[%clk 0:00:02.6]} 29... Rxf7 {[%clk 0:00:02.8]} 30. Rh4
{[%clk 0:00:02.2]} 30... Bd5 {[%clk 0:00:03]} 31. f5 {[%clk 0:00:02.1]} 31...
gxf5 {[%clk 0:00:03.1]} 32. Rf4 {[%clk 0:00:02.4]} 32... Kd6 {[%clk 0:00:03]}
33. Nxf5+ {[%clk 0:00:02.2]} 33... Ke5 {[%clk 0:00:03.4]} 34. Rh4 {[%clk
0:00:01.5]} 34... Kxf5 {[%clk 0:00:02.7]} 35. Rh6 {[%clk 0:00:01.8]} 35... Kxg5
{[%clk 0:00:02.4]} 36. Rxa6 {[%clk 0:00:01.6]} 36... Kf5 {[%clk 0:00:01.8]} 37.
Ra5 {[%clk 0:00:01.8]} 37... Ke5 {[%clk 0:00:02.7]} 38. Rxb5 {[%clk 0:00:01.9]}
38... Rb7 {[%clk 0:00:03.6]} 39. Rxb7 {[%clk 0:00:01]} 39... Bxb7 {[%clk
0:00:04.5]} 40. Kd2 {[%clk 0:00:01.6]} 40... Kd4 {[%clk 0:00:05.1]} 41. a3
{[%clk 0:00:01.6]} 41... Kc5 {[%clk 0:00:05.4]} 42. Kc3 {[%clk 0:00:01.8]} 42...
Bd5 {[%clk 0:00:06]} 43. a4 {[%clk 0:00:02.2]} 43... Be6 {[%clk 0:00:05.5]} 44.
h4 {[%clk 0:00:02.1]} 44... Bf7 {[%clk 0:00:04.9]} 0-1

[Event "Late-Titled-Tuesday-Blitz-November-28-2023"]
[Site "Chess.com"]
[Date "2023.11.28"]
[Round "6"]
[White "Ali_rastbod"]
[Black "Jospem"]
[Result "0-1"]
[WhiteElo "2784"]
[BlackElo "3057"]
[TimeControl "180+1"]
[EndTime "15:05:37 PST"]
[Termination "Jospem won by checkmate"]

1. c4 {[%clk 0:02:59.6]} 1... c5 {[%clk 0:03:00.1]} 2. g3 {[%clk 0:02:59.6]}
2... Nc6 {[%clk 0:03:00.5]} 3. Bg2 {[%clk 0:03:00.2]} 3... g6 {[%clk 0:03:01.2]}
4. Nc3 {[%clk 0:03:00.8]} 4... Bg7 {[%clk 0:02:59.8]} 5. a3 {[%clk 0:03:01]}
5... d6 {[%clk 0:02:59.6]} 6. Rb1 {[%clk 0:03:01]} 6... e6 {[%clk 0:03:00.2]} 7.
b4 {[%clk 0:02:59.6]} 7... Nge7 {[%clk 0:03:00.8]} 8. Nf3 {[%clk 0:03:00.2]}
8... O-O {[%clk 0:03:00.1]} 9. O-O {[%clk 0:03:00.8]} 9... Rb8 {[%clk
0:03:00.8]} 10. e3 {[%clk 0:03:00]} 10... e5 {[%clk 0:02:50.5]} 11. d3 {[%clk
0:02:53.7]} 11... h6 {[%clk 0:02:50.4]} 12. Nd2 {[%clk 0:02:48]} 12... b6 {[%clk
0:02:50.6]} 13. Nd5 {[%clk 0:02:40.1]} 13... Bf5 {[%clk 0:02:30.3]} 14. Qe2
{[%clk 0:02:36.7]} 14... Kh8 {[%clk 0:02:26.2]} 15. b5 {[%clk 0:02:29.1]} 15...
Nxd5 {[%clk 0:02:15.1]} 16. cxd5 {[%clk 0:02:26.9]} 16... Na5 {[%clk 0:02:15.7]}
17. e4 {[%clk 0:02:26.2]} 17... Bd7 {[%clk 0:02:15.4]} 18. Nc4 {[%clk
0:02:25.1]} 18... Nxc4 {[%clk 0:02:13.2]} 19. dxc4 {[%clk 0:02:26]} 19... f5
{[%clk 0:02:11.5]} 20. exf5 {[%clk 0:02:18.9]} 20... gxf5 {[%clk 0:02:10.8]} 21.
f4 {[%clk 0:02:19.5]} 21... e4 {[%clk 0:02:09.9]} 22. Bb2 {[%clk 0:02:19]} 22...
Qe7 {[%clk 0:01:59.3]} 23. Kh1 {[%clk 0:02:11.8]} 23... Kh7 {[%clk 0:01:57.3]}
24. a4 {[%clk 0:02:11.1]} 24... Bxb2 {[%clk 0:01:54.7]} 25. Rxb2 {[%clk
0:02:07.7]} 25... Qf6 {[%clk 0:01:44.7]} 26. a5 {[%clk 0:02:00.7]} 26... Be8
{[%clk 0:01:38.9]} 27. axb6 {[%clk 0:01:58.2]} 27... axb6 {[%clk 0:01:39.8]} 28.
Ra2 {[%clk 0:01:57.8]} 28... Rb7 {[%clk 0:01:38.1]} 29. Ra8 {[%clk 0:01:39.3]}
29... Bg6 {[%clk 0:01:33.8]} 30. Rfa1 {[%clk 0:01:32.6]} 30... Rfb8 {[%clk
0:01:25.5]} 31. h3 {[%clk 0:01:22.1]} 31... h5 {[%clk 0:01:23.4]} 32. Kh2 {[%clk
0:01:15.5]} 32... Rxa8 {[%clk 0:01:21.2]} 33. Rxa8 {[%clk 0:01:14.1]} 33... h4
{[%clk 0:01:07.6]} 34. g4 {[%clk 0:01:04]} 34... Re7 {[%clk 0:00:27.8]} 35. g5
{[%clk 0:01:03.2]} 35... Qf7 {[%clk 0:00:08.4]} 36. Qf2 {[%clk 0:01:01.6]} 36...
Kg7 {[%clk 0:00:08.7]} 37. Qxh4 {[%clk 0:01:00.8]} 37... Re8 {[%clk 0:00:06.9]}
38. Qh6+ {[%clk 0:00:31.4]} 38... Kg8 {[%clk 0:00:07]} 39. Ra7 {[%clk
0:00:31.6]} 39... Qxa7 {[%clk 0:00:06.8]} 40. Qxg6+ {[%clk 0:00:32.2]} 40... Kf8
{[%clk 0:00:07.7]} 41. Qxf5+ {[%clk 0:00:16.2]} 41... Kg8 {[%clk 0:00:08.2]} 42.
Qg6+ {[%clk 0:00:10.7]} 42... Kf8 {[%clk 0:00:08]} 43. Qxd6+ {[%clk 0:00:11]}
43... Qe7 {[%clk 0:00:06.8]} 44. Qh6+ {[%clk 0:00:04]} 44... Qg7 {[%clk
0:00:07.1]} 45. Qd6+ {[%clk 0:00:04.2]} 45... Kg8 {[%clk 0:00:05]} 46. Kg3
{[%clk 0:00:03.5]} 46... e3 {[%clk 0:00:05.4]} 47. Qc6 {[%clk 0:00:02.8]} 47...
Qf7 {[%clk 0:00:02.5]} 48. d6 {[%clk 0:00:03.1]} 48... e2 {[%clk 0:00:01.9]} 49.
Bd5 {[%clk 0:00:03.2]} 49... e1=Q+ {[%clk 0:00:02.5]} 50. Kg4 {[%clk 0:00:03.7]}
50... Qe2+ {[%clk 0:00:02.6]} 51. Kg3 {[%clk 0:00:04.2]} 51... Qe3+ {[%clk
0:00:03.2]} 52. Kg2 {[%clk 0:00:04.8]} 52... Qd2+ {[%clk 0:00:03.6]} 53. Kh1
{[%clk 0:00:04.3]} 53... Re1# {[%clk 0:00:03.8]} 0-1